fUST/lending_fUST_20250204
["ID","MTS","AMOUNT","RATE_DAILY","PERIOD"]
[351540955,1738618254212,-724.96,0.00017123,2]
[351540956,1738618254221,-500.0,0.00017123,2]
[351540957,1738618254231,-502.86313856,0.00017123,2]
[351540958,1738618254242,-14167.03686144,0.00017123,2]
[351540959,1738618254251,-500.0,0.00017123,2]
[351540960,1738618254260,-153.0,0.00017178,2]
[351540961,1738618254269,-153.0,0.00017178,2]
[351540962,1738618254278,-308.4664278,0.00017178,2]
[351540963,1738618254287,-151.0,0.00017185,2]
[351540964,1738618254296,-432.404117,0.00017185,2]
[351540965,1738618254306,-432.404117,0.00017185,2]
[351540966,1738618254315,-151.0,0.000172,2]
[351540967,1738618254324,-4528.66268087,0.000172,2]
[351540968,1738618254333,-183.73402898,0.000172,2]
[351540969,1738618254343,-677.97552639,0.000172,2]
[351540970,1738618254352,-294.391,0.00017215,2]
[351540971,1738618254361,-279.0,0.0001725,2]
[351540972,1738618254370,-151.0,0.0001726,2]
[351540973,1738618254379,-177.53701,0.0001726,2]
[351540974,1738618254388,-177.53701,0.0001726,2]
[351540975,1738618254398,-152.904828,0.0001726,2]
[351540976,1738618254407,-500.0,0.0001726,2]
[351540977,1738618254416,-232.529977,0.0001726,2]
[351540978,1738618254425,-232.529977,0.0001726,2]
[351540979,1738618254435,-542.81041593,0.0001726,2]
[351540980,1738618254445,-348.43923245,0.0001726,2]
[351540981,1738618254454,-500.0,0.0001726,2]
[351540982,1738618254465,-500.0,0.0001726,2]
[351540983,1738618254474,-500.0,0.0001726,2]
[351540984,1738618254483,-500.0,0.0001726,2]
[351540985,1738618254493,-257.15277602,0.0001726,2]
[351540986,1738618254502,-500.0,0.0001726,2]
[351540987,1738618254511,-500.0,0.0001726,2]
[351540988,1738618254520,-1000.49,0.0001726,2]
[351540989,1738618254530,-500.0,0.0001726,2]
[351540990,1738618254539,-651.22,0.0001726,2]
[351540991,1738618254548,-500.0,0.0001726,2]
[351540992,1738618254557,-629.78,0.0001726,2]
[351540993,1738618254567,-5746.53,0.0001726,2]
[351540994,1738618254576,-853.59,0.0001726,2]
[351540995,1738618254586,-500.0,0.0001726,2]
[351540996,1738618254596,-752.62,0.0001726,2]
[351540997,1738618254606,-609.53,0.0001726,2]
[351540998,1738618254615,-1242.33,0.0001726,2]
[351540999,1738618254625,-3233.63,0.0001726,2]
[351541000,1738618254634,-770.39,0.0001726,2]
[351541001,1738618254644,-781.57,0.0001726,2]
[351541002,1738618254653,-500.0,0.0001726,2]
[351541003,1738618254663,-500.0,0.0001726,2]
[351541004,1738618254672,-1543.09,0.0001726,2]
[351541005,1738618254681,-641.32,0.0001726,2]
[351541006,1738618254690,-1356.85,0.0001726,2]
[351541007,1738618254699,-500.0,0.0001726,2]
[351541008,1738618254709,-2165.76,0.0001726,2]
[351541009,1738618254719,-916.05,0.0001726,2]
[351541010,1738618254728,-509.56,0.0001726,2]
[351541011,1738618254738,-500.0,0.0001726,2]
[351541012,1738618254748,-555.36,0.0001726,2]
[351541013,1738618254757,-1275.64,0.0001726,2]
[351541014,1738618254767,-500.0,0.0001726,2]
[351541015,1738618254778,-169.76217423,0.0001726,2]
[351541016,1738618254787,-3488.56,0.0001726,2]
[351541017,1738618254797,-2070.94,0.0001726,2]
[351541018,1738618254806,-500.0,0.0001726,2]
[351541019,1738618254817,-751.44,0.0001726,2]
[351541020,1738618254825,-782.12,0.0001726,2]
[351541021,1738618254834,-534.26,0.0001726,2]
[351541022,1738618254843,-1255.36,0.0001726,2]
[351541023,1738618254853,-1324.19,0.0001726,2]
[351541024,1738618254864,-694.39,0.0001726,2]
[351541025,1738618254874,-5855.21,0.0001726,2]
[351541026,1738618254884,-500.0,0.0001726,2]
[351541027,1738618254894,-737.36,0.0001726,2]
[351541028,1738618254903,-521.86,0.0001726,2]
[351541029,1738618254912,-500.0,0.0001726,2]
[351541030,1738618254922,-500.0,0.0001726,2]
[351541031,1738618254931,-724.96,0.0001726,2]
[351541032,1738618254940,-500.0,0.0001726,2]
[351541033,1738618254950,-14669.9,0.0001726,2]
[351541034,1738618254959,-500.0,0.0001726,2]
[351541035,1738618254968,-153.0,0.00017266,2]
[351541036,1738618254977,-153.0,0.00017266,2]
[351541037,1738618254987,-153.0,0.00017266,2]
[351541038,1738618254996,-153.0,0.00017266,2]
[351541039,1738618255005,-153.0,0.00017266,2]
[351541040,1738618255014,-153.0,0.00017266,2]
[351541041,1738618255024,-153.0,0.00017266,2]
[351541042,1738618255034,-153.0,0.00017266,2]
[351541043,1738618255043,-153.0,0.00017266,2]
[351541044,1738618255053,-153.0,0.00017266,2]
[351541045,1738618255063,-153.0,0.00017266,2]
[351541046,1738618255073,-153.0,0.00017266,2]
[351541047,1738618255082,-153.0,0.00017266,2]
[351541048,1738618255092,-500.0,0.00017273,2]
[351541049,1738618255101,-381.80590074,0.00017273,2]
[351541050,1738618255111,-500.0,0.00017273,2]
[351541051,1738618255120,-677.97552638,0.00017278,2]
[351541052,1738618255129,-768.6559825,0.0001728,2]
[351541053,1738618255138,-110130.04515766,0.000173,15]
[351541054,1738618255152,-462.33353198,0.000173,15]
[351541055,1738618255306,-500.0,0.00016438,2]
[351541057,1738618255741,-272.19120742,0.00016438,2]
[351541496,1738618655759,1686.55153711,0.00015012,2]
[351541517,1738618671298,2187.02351704,0.00015012,2]
[351541556,1738618708394,705.0468682,0.00015012,2]
[351541642,1738618808430,1237.52215649,0.00015012,2]
[351541731,1738618895667,3537.57932104,0.00015012,2]
[351541836,1738618990065,5000.0,0.00015012,2]
[351541896,1738619051635,283.593646,0.00013973,2]
[351542408,1738619432757,-317.7,0.00015146,2]
[351542409,1738619432767,-542.28420001,0.00015262,2]
[351542411,1738619432776,-77.06111064,0.00015262,2]
[351542412,1738619432936,-160.61996285,0.00015262,2]
[351542413,1738619432946,-418.90161307,0.00015363,2]
[351542446,1738619438603,-344.76938033,0.00015363,2]
[351542447,1738619438614,-216.597336,0.00015414,2]
[351542448,1738619438623,-300.0,0.00016337,2]
[351542449,1738619438633,-572.61566424,0.00016338,2]
[351542450,1738619438642,-29998.56659265,0.00016338,2]
[351542451,1738619438653,-65909.236666,0.000164,2]
[351542452,1738619438662,-194.1863234,0.00016428,2]
[351542453,1738619438672,-385.12828622,0.00016436,2]
[351542454,1738619438681,-1103.49276525,0.00016437,2]
[351542455,1738619438691,-500.0,0.00016437,2]
[351542456,1738619438700,-383.39084603,0.00016437,2]
[351542457,1738619438709,-284.10072958,0.00016437,2]
[351542458,1738619438719,-1103.49276525,0.00016437,2]
[351542459,1738619438728,-330.53609762,0.00016437,2]
[351542460,1738619438738,-1103.49276525,0.00016437,2]
[351542461,1738619438747,-500.0,0.00016437,2]
[351542462,1738619438757,-1103.49276525,0.00016437,2]
[351542463,1738619438767,-1103.49276525,0.00016437,2]
[351542464,1738619438776,-500.0,0.00016437,2]
[351542465,1738619438785,-1103.49276525,0.00016437,2]
[351542466,1738619438795,-1103.49276525,0.00016437,2]
[351542467,1738619438804,-500.0,0.00016437,2]
[351542468,1738619438814,-1103.49276525,0.00016437,2]
[351542469,1738619438824,-500.0,0.00016437,2]
[351542470,1738619438833,-1103.49276525,0.00016437,2]
[351542471,1738619438843,-500.0,0.00016437,2]
[351542474,1738619438853,-1103.49276525,0.00016437,2]
[351542476,1738619438862,-1103.49276525,0.00016437,2]
[351542478,1738619438872,-500.0,0.00016437,2]
[351542479,1738619438882,-1103.49276525,0.00016437,2]
[351542480,1738619438891,-1103.49276525,0.00016437,2]
[351542481,1738619438901,-1103.49276525,0.00016437,2]
[351542482,1738619438909,-1103.49276525,0.00016437,2]
[351542483,1738619438920,-1103.49276525,0.00016437,2]
[351542484,1738619438929,-1103.49276525,0.00016437,2]
[351542485,1738619438938,-1103.49276525,0.00016437,2]
[351542486,1738619438947,-1103.49276525,0.00016437,2]
[351542487,1738619438957,-1103.49276525,0.00016437,2]
[351542488,1738619438966,-1103.49276525,0.00016437,2]
[351542489,1738619438975,-1103.49276525,0.00016437,2]
[351542490,1738619438984,-1103.49276525,0.00016437,2]
[351542491,1738619438993,-1103.49276525,0.00016437,2]
[351542492,1738619439003,-1103.49276525,0.00016437,2]
[351542493,1738619439012,-1103.49276525,0.00016437,2]
[351542494,1738619439022,-1103.49276525,0.00016437,2]
[351542495,1738619439032,-1103.49276525,0.00016437,2]
[351542496,1738619439042,-1103.49276525,0.00016437,2]
[351542497,1738619439052,-1103.49276525,0.00016437,2]
[351542498,1738619439062,-1103.49276525,0.00016437,2]
[351542499,1738619439072,-1103.49276525,0.00016437,2]
[351542500,1738619439081,-1103.49276525,0.00016437,2]
[351542501,1738619439090,-1103.49276525,0.00016437,2]
[351542502,1738619439099,-1103.49276525,0.00016437,2]
[351542503,1738619439108,-1103.49276525,0.00016437,2]
[351542504,1738619439118,-1103.49276525,0.00016437,2]
[351542505,1738619439127,-1103.49276525,0.00016437,2]
[351542506,1738619439136,-1103.49276525,0.00016437,2]
[351542507,1738619439146,-1103.49276525,0.00016437,2]
[351542508,1738619439155,-1103.49276525,0.00016437,2]
[351542509,1738619439165,-1103.49276525,0.00016437,2]
[351542510,1738619439178,-1103.49276525,0.00016437,2]
[351542511,1738619439187,-1103.49276525,0.00016437,2]
[351542512,1738619439197,-1103.49276525,0.00016437,2]
[351542513,1738619439206,-1103.49276525,0.00016437,2]
[351542514,1738619439217,-1103.49276525,0.00016437,2]
[351542515,1738619439226,-1103.49276525,0.00016437,2]
[351542516,1738619439236,-1103.49276525,0.00016437,2]
[351542517,1738619439245,-1103.49276525,0.00016437,2]
[351542518,1738619439256,-1103.49276525,0.00016437,2]
[351542519,1738619439266,-1103.49276525,0.00016437,2]
[351542520,1738619439275,-1103.49276525,0.00016437,2]
[351542521,1738619439285,-1103.49276525,0.00016437,2]
[351542522,1738619439294,-1103.49276525,0.00016437,2]
[351542523,1738619439304,-1103.49276525,0.00016437,2]
[351542524,1738619439313,-1103.49276525,0.00016437,2]
[351542525,1738619439323,-1148.414253,0.00016437,2]
[351542526,1738619439332,-1148.414253,0.00016437,2]
[351542527,1738619439343,-1148.414253,0.00016437,2]
[351542528,1738619439352,-1148.414253,0.00016437,2]
[351542529,1738619439362,-1148.414253,0.00016437,2]
[351542530,1738619439372,-1148.414253,0.00016437,2]
[351542531,1738619439382,-1148.414253,0.00016437,2]
[351542532,1738619439391,-1148.414253,0.00016437,2]
[351542533,1738619439401,-1148.414253,0.00016437,2]
[351542534,1738619439410,-1148.414253,0.00016437,2]
[351542535,1738619439422,-1148.414253,0.00016437,2]
[351542536,1738619439432,-1148.414253,0.00016437,2]
[351542537,1738619439441,-1148.414253,0.00016437,2]
[351542538,1738619439451,-1148.414253,0.00016437,2]
[351542539,1738619439460,-1148.414253,0.00016437,2]
[351542540,1738619439470,-1148.414253,0.00016437,2]
[351542541,1738619439480,-1148.414253,0.00016437,2]
[351542542,1738619439489,-1148.414253,0.00016437,2]
[351542543,1738619439498,-1148.414253,0.00016437,2]
[351542544,1738619439507,-1148.414253,0.00016437,2]
[351542545,1738619439517,-1148.414253,0.00016437,2]
[351542546,1738619439526,-1148.414253,0.00016437,2]
[351542547,1738619439536,-1148.414253,0.00016437,2]
[351542548,1738619439546,-1148.414253,0.00016437,2]
[351542549,1738619439555,-1148.414253,0.00016437,2]
[351542550,1738619439565,-1148.414253,0.00016437,2]
[351542551,1738619439574,-1148.414253,0.00016437,2]
[351542552,1738619439583,-1148.414253,0.00016437,2]
[351542553,1738619439593,-1148.414253,0.00016437,2]
[351542554,1738619439603,-1148.414253,0.00016437,2]
[351542555,1738619439612,-1148.414253,0.00016437,2]
[351542556,1738619439621,-1148.41425294,0.00016437,2]
[351542557,1738619439631,-274.621661,0.00016438,2]
[351542558,1738619439640,-274.621661,0.00016438,2]
[351542559,1738619439649,-274.621661,0.00016438,2]
[351542560,1738619439659,-274.621661,0.00016438,2]
[351542561,1738619439670,-274.621661,0.00016438,2]
[351542562,1738619439679,-274.621661,0.00016438,2]
[351542563,1738619439689,-274.621661,0.00016438,2]
[351542564,1738619439699,-274.621661,0.00016438,2]
[351542565,1738619439708,-513.0595766,0.00016438,2]
[351542566,1738619439719,-500.0,0.00016438,2]
[351542567,1738619439729,-500.0,0.00016438,2]
[351542568,1738619439739,-584.38961724,0.00016438,2]
[351542569,1738619439748,-500.0,0.00016438,2]
[351542570,1738619439758,-500.0,0.00016438,2]
[351542571,1738619439769,-614.57281206,0.00016438,2]
[351542572,1738619439778,-500.0,0.00016438,2]
[351542573,1738619439788,-500.0,0.00016438,2]
[351542574,1738619439797,-500.0,0.00016438,2]
[351542575,1738619439807,-580.00675631,0.00016438,2]
[351542576,1738619439817,-500.0,0.00016438,2]
[351542577,1738619439826,-500.0,0.00016438,2]
[351542578,1738619439835,-500.0,0.00016438,2]
[351542579,1738619439845,-504.00889687,0.00016438,2]
[351542580,1738619439855,-500.0,0.00016438,2]
[351542581,1738619439865,-500.0,0.00016438,2]
[351542582,1738619439874,-501.71050331,0.00016438,2]
[351542583,1738619439884,-500.0,0.00016438,2]
[351542584,1738619439894,-501.77718779,0.00016438,2]
[351542585,1738619439903,-500.0,0.00016438,2]
[351542586,1738619439913,-500.0,0.00016438,2]
[351542587,1738619439925,-500.0,0.00016438,2]
[351542588,1738619439935,-416.8617299,0.00016438,2]
[351542589,1738619439945,-503.54681865,0.00016438,2]
[351542590,1738619439956,-500.0,0.00016438,2]
[351542591,1738619439967,-503.39676494,0.00016438,2]
[351542592,1738619439976,-500.0,0.00016438,2]
[351542593,1738619439987,-500.0,0.00016438,2]
[351542594,1738619439997,-500.0,0.00016438,2]
[351542596,1738619440007,-501.62133054,0.00016438,2]
[351542598,1738619440017,-588.83611458,0.00016438,2]
[351542599,1738619440027,-501.73835056,0.00016438,2]
[351542600,1738619440037,-502.59010791,0.00016438,2]
[351542601,1738619440047,-500.0,0.00016438,2]
[351542602,1738619440056,-500.0,0.00016438,2]
[351542603,1738619440067,-511.0365974,0.00016438,2]
[351542604,1738619440076,-500.0,0.00016438,2]
[351542605,1738619440086,-515.73902246,0.00016438,2]
[351542606,1738619440096,-501.90805938,0.00016438,2]
[351542607,1738619440238,-527.38347255,0.00016438,2]
[351542608,1738619440250,-504.5196841,0.00016438,2]
[351542609,1738619440260,-500.0,0.00016438,2]
[351542610,1738619440270,-500.0,0.00016438,2]
[351542611,1738619440280,-500.0,0.00016438,2]
[351542612,1738619440290,-500.0,0.00016438,2]
[351542613,1738619440300,-500.0,0.00016438,2]
[351542614,1738619440310,-506.17343592,0.00016438,2]
[351542615,1738619440321,-500.0,0.00016438,2]
[351542616,1738619440331,-199.57844648,0.00016438,2]
[351542617,1738619440341,-376.83327941,0.00016438,2]
[351542618,1738619440351,-502.7288556,0.00016438,2]
[351542619,1738619440361,-500.0,0.00016438,2]
[351542620,1738619440372,-501.69821228,0.00016438,2]
[351542621,1738619440382,-500.0,0.00016438,2]
[351542622,1738619440391,-500.0,0.00016438,2]
[351542623,1738619440402,-500.0,0.00016438,2]
[351542624,1738619440412,-500.0,0.00016438,2]
[351542625,1738619440425,-500.0,0.00016438,2]
[351542626,1738619440435,-502.25217399,0.00016438,2]
[351542627,1738619440446,-500.0,0.00016438,2]
[351542628,1738619440456,-501.03179903,0.00016438,2]
[351542629,1738619440466,-500.0,0.00016438,2]
[351542630,1738619440476,-500.0,0.00016438,2]
[351542631,1738619440486,-500.0,0.00016438,2]
[351542632,1738619440495,-500.0,0.00016438,2]
[351542633,1738619440506,-500.0,0.00016438,2]
[351542634,1738619440516,-502.23257628,0.00016438,2]
[351542635,1738619440527,-500.0,0.00016438,2]
[351542636,1738619440538,-500.0,0.00016438,2]
[351542637,1738619440548,-512.0629643,0.00016438,2]
[351542638,1738619440558,-500.0,0.00016438,2]
[351542639,1738619440568,-500.0,0.00016438,2]
[351542640,1738619440579,-357.48577573,0.00016438,2]
[351542641,1738619440589,-240.45032722,0.00016438,2]
[351542642,1738619440598,-503.78142801,0.00016438,2]
[351542643,1738619440609,-500.0,0.00016438,2]
[351542644,1738619440619,-413.33651751,0.00016438,2]
[351542645,1738619440629,-500.0,0.00016438,2]
[351542646,1738619440638,-500.0,0.00016438,2]
[351542647,1738619440648,-504.82682776,0.00016438,2]
[351542648,1738619440658,-500.0,0.00016438,2]
[351542649,1738619440669,-596.33640238,0.00016438,2]
[351542650,1738619440679,-500.0,0.00016438,2]
[351542651,1738619440689,-500.0,0.00016438,2]
[351542652,1738619440699,-500.0,0.00016438,2]
[351542653,1738619440710,-211.0,0.00016438,2]
[351542654,1738619440720,-500.0,0.00016438,2]
[351542655,1738619440730,-500.0,0.00016438,2]
[351542656,1738619440740,-500.0,0.00016438,2]
[351542657,1738619440750,-228.77619763,0.00016438,2]
[351542658,1738619440761,-500.0,0.00016438,2]
[351542659,1738619440771,-500.0,0.00016438,2]
[351542660,1738619440781,-500.0,0.00016438,2]
[351542661,1738619440790,-500.0,0.00016438,2]
[351542662,1738619440801,-500.0,0.00016438,2]
[351542663,1738619440811,-500.0,0.00016438,2]
[351542664,1738619440820,-500.0,0.00016438,2]
[351542665,1738619440831,-500.0,0.00016438,2]
[351542666,1738619440840,-500.0,0.00016438,2]
[351542667,1738619440849,-500.0,0.00016438,2]
[351542668,1738619440859,-500.0,0.00016438,2]
[351542669,1738619440869,-500.0,0.00016438,2]
[351542670,1738619440879,-500.0,0.00016438,2]
[351542671,1738619440888,-502.22259886,0.00016438,2]
[351542672,1738619440898,-500.0,0.00016438,2]
[351542673,1738619440908,-500.0,0.00016438,2]
[351542674,1738619440919,-501.18530871,0.00016438,2]
[351542675,1738619440930,-500.0,0.00016438,2]
[351542676,1738619440939,-500.0,0.00016438,2]
[351542677,1738619440950,-500.0,0.00016438,2]
[351542678,1738619440961,-500.0,0.00016438,2]
[351542679,1738619440970,-500.0,0.00016438,2]
[351542680,1738619440980,-500.0,0.00016438,2]
[351542681,1738619440990,-500.0,0.00016438,2]
[351542682,1738619441000,-500.0,0.00016438,2]
[351542683,1738619441011,-500.0,0.00016438,2]
[351542685,1738619441021,-500.0,0.00016438,2]
[351542686,1738619441031,-500.0,0.00016438,2]
[351542688,1738619441041,-500.0,0.00016438,2]
[351542690,1738619441051,-500.0,0.00016438,2]
[351542692,1738619441061,-500.0,0.00016438,2]
[351542693,1738619441070,-500.0,0.00016438,2]
[351542694,1738619441080,-501.59986121,0.00016438,2]
[351542695,1738619441090,-500.0,0.00016438,2]
[351542696,1738619441099,-500.0,0.00016438,2]
[351542697,1738619441109,-500.0,0.00016438,2]
[351542698,1738619441119,-500.0,0.00016438,2]
[351542699,1738619441130,-500.0,0.00016438,2]
[351542700,1738619441139,-500.0,0.00016438,2]
[351542701,1738619441149,-500.0,0.00016438,2]
[351542702,1738619441160,-500.0,0.00016438,2]
[351542703,1738619441172,-500.0,0.00016438,2]
[351542704,1738619441185,-614.97094932,0.00016438,2]
[351542705,1738619441195,-628.72990157,0.00016438,2]
[351542706,1738619441205,-500.0,0.00016438,2]
[351542707,1738619441215,-500.0,0.00016438,2]
[351542708,1738619441225,-500.0,0.00016438,2]
[351542709,1738619441235,-500.0,0.00016438,2]
[351542710,1738619441245,-500.0,0.00016438,2]
[351542711,1738619441257,-500.0,0.00016438,2]
[351542712,1738619441268,-151.0,0.00016438,2]
[351542713,1738619441278,-500.0,0.00016438,2]
[351542714,1738619441288,-500.0,0.00016438,2]
[351542715,1738619441300,-501.7655275,0.00016438,2]
[351542716,1738619441309,-151.0,0.00016438,2]
[351542717,1738619441318,-151.0,0.00016438,2]
[351542718,1738619441329,-501.21233733,0.00016438,2]
[351542719,1738619441339,-500.0,0.00016438,2]
[351542720,1738619441349,-500.0,0.00016438,2]
[351542721,1738619441358,-617.59084311,0.00016438,2]
[351542722,1738619441368,-500.0,0.00016438,2]
[351542723,1738619441378,-500.0,0.00016438,2]
[351542724,1738619441389,-500.0,0.00016438,2]
[351542725,1738619441399,-500.90461884,0.00016438,2]
[351542726,1738619441409,-500.0,0.00016438,2]
[351542727,1738619441421,-500.0,0.00016438,2]
[351542728,1738619441430,-500.0,0.00016438,2]
[351542729,1738619441440,-500.0,0.00016438,2]
[351542730,1738619441450,-503.18100179,0.00016438,2]
[351542731,1738619441460,-500.0,0.00016438,2]
[351542732,1738619441470,-500.0,0.00016438,2]
[351542733,1738619441480,-500.0,0.00016438,2]
[351542734,1738619441489,-500.0,0.00016438,2]
[351542735,1738619441499,-500.0,0.00016438,2]
[351542736,1738619441509,-500.0,0.00016438,2]
[351542738,1738619441519,-500.0,0.00016438,2]
[351542739,1738619441528,-500.0,0.00016438,2]
[351542740,1738619441538,-500.0,0.00016438,2]
[351542741,1738619441548,-500.0,0.00016438,2]
[351542742,1738619441558,-500.0,0.00016438,2]
[351542744,1738619441568,-500.0,0.00016438,2]
[351542745,1738619441578,-500.0,0.00016438,2]
[351542747,1738619441588,-500.0,0.00016438,2]
[351542749,1738619441598,-497.45620905,0.00016438,2]
[351542750,1738619441608,-151.0,0.00016438,2]
[351542751,1738619441618,-500.0,0.00016438,2]
[351542752,1738619441628,-500.0,0.00016438,2]
[351542753,1738619441637,-500.0,0.00016438,2]
[351542754,1738619441647,-500.0,0.00016438,2]
[351542755,1738619441657,-500.0,0.00016438,2]
[351542756,1738619441667,-502.60500245,0.00016438,2]
[351542757,1738619441677,-500.0,0.00016438,2]
[351542758,1738619441687,-500.0,0.00016438,2]
[351542759,1738619441696,-501.62518124,0.00016438,2]
[351542760,1738619441705,-500.88409937,0.00016438,2]
[351542761,1738619441715,-500.0,0.00016438,2]
[351542762,1738619441725,-500.0,0.00016438,2]
[351542763,1738619441735,-500.0,0.00016438,2]
[351542764,1738619441745,-500.0,0.00016438,2]
[351542765,1738619441755,-500.0,0.00016438,2]
[351542766,1738619441765,-500.0,0.00016438,2]
[351542767,1738619441774,-500.0,0.00016438,2]
[351542768,1738619441784,-500.0,0.00016438,2]
[351542769,1738619441793,-505.19320825,0.00016438,2]
[351542770,1738619441803,-500.0,0.00016438,2]
[351542771,1738619441813,-500.0,0.00016438,2]
[351542772,1738619441823,-500.0,0.00016438,2]
[351542773,1738619441833,-500.0,0.00016438,2]
[351542774,1738619441843,-500.0,0.00016438,2]
[351542775,1738619441853,-500.0,0.00016438,2]
[351542776,1738619441863,-510.705754,0.00016438,2]
[351542777,1738619441873,-500.0,0.00016438,2]
[351542778,1738619441882,-500.0,0.00016438,2]
[351542779,1738619441893,-500.0,0.00016438,2]
[351542780,1738619441902,-500.0,0.00016438,2]
[351542781,1738619441912,-500.0,0.00016438,2]
[351542782,1738619441923,-500.0,0.00016438,2]
[351542783,1738619441932,-500.52844914,0.00016438,2]
[351542784,1738619441942,-500.0,0.00016438,2]
[351542785,1738619441953,-497.58168819,0.00016438,2]
[351542786,1738619441963,-500.0,0.00016438,2]
[351542787,1738619441973,-500.0,0.00016438,2]
[351542788,1738619441982,-500.0,0.00016438,2]
[351542789,1738619441992,-500.0,0.00016438,2]
[351542790,1738619442002,-500.0,0.00016438,2]
[351542791,1738619442012,-500.0,0.00016438,2]
[351542792,1738619442022,-500.0,0.00016438,2]
[351542793,1738619442032,-500.0,0.00016438,2]
[351542794,1738619442041,-500.0,0.00016438,2]
[351542795,1738619442050,-500.0,0.00016438,2]
[351542796,1738619442060,-500.0,0.00016438,2]
[351542797,1738619442069,-500.0,0.00016438,2]
[351542798,1738619442079,-500.0,0.00016438,2]
[351542799,1738619442089,-500.0,0.00016438,2]
[351542800,1738619442099,-500.0,0.00016438,2]
[351542801,1738619442109,-500.0,0.00016438,2]
[351542802,1738619442119,-630.04707734,0.00016438,2]
[351542803,1738619442129,-413.82239,0.00016438,2]
[351542804,1738619442139,-413.82239,0.00016438,2]
[351542805,1738619442149,-500.0,0.00016438,2]
[351542806,1738619442159,-501.27429002,0.00016438,2]
[351542807,1738619442174,-500.0,0.00016438,2]
[351542808,1738619442186,-413.82239,0.00016438,2]
[351542809,1738619442196,-500.0,0.00016438,2]
[351542810,1738619442206,-413.82239,0.00016438,2]
[351542811,1738619442218,-500.0,0.00016438,2]
[351542812,1738619442227,-500.0,0.00016438,2]
[351542813,1738619442237,-500.0,0.00016438,2]
[351542814,1738619442247,-500.0,0.00016438,2]
[351542815,1738619442258,-500.0,0.00016438,2]
[351542816,1738619442268,-500.0,0.00016438,2]
[351542817,1738619442277,-500.0,0.00016438,2]
[351542818,1738619442287,-190.51290605,0.00016438,2]
[351542819,1738619442299,-500.0,0.00016438,2]
[351542820,1738619442310,-500.0,0.00016438,2]
[351542821,1738619442320,-555.14470569,0.00016438,2]
[351542822,1738619442330,-500.0,0.00016438,2]
[351542823,1738619442341,-507.65782551,0.00016438,2]
[351542824,1738619442351,-619.37320158,0.00016438,2]
[351542825,1738619442361,-500.0,0.00016438,2]
[351542826,1738619442371,-500.0,0.00016438,2]
[351542827,1738619442382,-500.0,0.00016438,2]
[351542828,1738619442392,-500.0,0.00016438,2]
[351542829,1738619442402,-500.0,0.00016438,2]
[351542831,1738619442411,-500.0,0.00016438,2]
[351542832,1738619442424,-500.0,0.00016438,2]
[351542833,1738619442434,-500.0,0.00016438,2]
[351542834,1738619442444,-500.0,0.00016438,2]
[351542835,1738619442453,-368.94084723,0.00016438,2]
[351542836,1738619442463,-204.22266802,0.00016438,2]
[351542837,1738619442474,-500.0,0.00016438,2]
[351542838,1738619442484,-500.0,0.00016438,2]
[351542839,1738619442494,-500.0,0.00016438,2]
[351542840,1738619442504,-500.0,0.00016438,2]
[351542841,1738619442514,-500.0,0.00016438,2]
[351542842,1738619442523,-500.0,0.00016438,2]
[351542843,1738619442533,-500.0,0.00016438,2]
[351542844,1738619442543,-500.0,0.00016438,2]
[351542845,1738619442552,-504.87194278,0.00016438,2]
[351542847,1738619442562,-500.0,0.00016438,2]